Cogmind - Beta 12 @@@ ROGUE MODE // 2023.07.22 @ 23:07:22 Player: noklam Result: Destroyed by H-61 Shepherd with Heavy Assault Cannon Performance ------------- Evolutions (2) 1000 Regions Visited (3) 600 Robots Destroyed (38) 190 Value Destroyed (875) 875 Prototype IDs (3) 60 Alien Tech Used (0) 0 Bonus (68) 68 TOTAL SCORE: 2793 Bonus ------- High Alert Combat Kills 68 Cogmind --------- Core Integrity 0/550 Matter 355/500 Energy 252/265 System Corruption 9% Temperature Cool (0) Movement Walking (130) Location -8/Materials Parts ------- > --- POWER (2) -------- Improved Ion Engine > --- PROPULSION (4) --- Titanium Leg Titanium Leg Surge Thruster > --- UTILITY (3) ------ Small Storage Unit High-capacity Matter Pod > --- WEAPON (2) ------- Minigun Advanced EMP Blaster > --- INVENTORY (8) ---- Improved Terrain Scan Processor Pulse Rifle Shock Bomb Launcher Improved Datajack Peak State ------------ > --- POWER ------------ Light Nuclear Core Light Nuclear Core > --- PROPULSION ------- Aluminum Leg Aluminum Leg Improved VTOL Module Improved VTOL Module > --- UTILITY ---------- Thermal Generator Improved Heat Sink Compact Matter Pod > --- WEAPON ----------- Pulse Rifle Minigun > --- INVENTORY -------- Aluminum Leg Small Storage Unit Particle Gun Improved Datajack [Rating: 31] Favorites ----------- Power Light Ion Engine Engine Light Ion Engine Power Core Light Nuclear Core Propulsion Aluminum Leg Leg Aluminum Leg Wheel Wheel Flight Unit Flight Unit Utility Heat Sink Device Heat Sink Storage High-capacity Matter Pod Processor Visual Processing Unit Protection Improved Power Shielding Weapon EM Pulse Gun Energy Gun EM Pulse Gun Ballistic Gun Minigun Launcher Advanced EMP Blaster Special Melee Weapon Improved Datajack Build | -11 -10 -9 -8 ------- Run | Jun Mat Mat Mat Slots Evolved 4 | . . 2 2 Power 1 | . . . 1 Propulsion 2 | . . 1 1 Utility 1 | . . 1 . Weapon . | . . . . Parts Attached 75 | 6 4 15 50 Power 13 | 1 . 2 10 Engine 11 | 1 . 2 8 Core 2 | . . . 2 Reactor . | . . . . Propulsion 25 | 2 2 1 20 Treads . | . . . . Leg 11 | 2 . . 9 Wheel 3 | . . . 3 Hover . | . . . . Flight 11 | . 2 1 8 Utility 16 | 1 2 4 9 Device 6 | 1 1 2 2 Storage 5 | . . 1 4 Processor 2 | . 1 1 . Hackware . | . . . . Protection 3 | . . . 3 Artifact . | . . . . Weapon 21 | 2 . 8 11 Energy Gun 14 | 2 . 8 4 Energy Cannon . | . . . . Ballistic Gun 4 | . . . 4 Ballistic Cannon . | . . . . Launcher 2 | . . . 2 Special Weapon . | . . . . Impact Weapon . | . . . . Slashing Weapon . | . . . . Piercing Weapon . | . . . . Special Melee Weapon 1 | . . . 1 Unidentified Prototypes 3 | . . . 3 Corrupted Parts 1 | . . . 1 System Corruption 9 | . . . 9 Parts Lost 32 | . . . 32 Power 7 | . . . 7 Propulsion 11 | . . . 11 Utility 9 | . . . 9 Weapon 5 | . . . 5 Highest Loss Streak 14 | . . . 14 To Critical Strikes 1 | . . . 1 Average Slot Usage (%) 84 | . 94 100 78 Engine 10 | . 14 11 9 Core 1 | . . . 2 Leg 13 | . 22 . 14 Flight 13 | . 4 33 12 Device 12 | . 14 30 8 Storage 3 | . . . 4 Processor 2 | . 8 2 . Protection 4 | . . . 7 Energy Gun 15 | . 28 22 9 Ballistic Gun 3 | . . . 5 Naked Turns . | . . . . Heaviest Build 30 | 8 9 16 30 Greatest Support 61 | 20 20 12 61 Greatest Overweight (x) 6 | . 2 1 6 Average Overweight (x) . | . . . . Largest Inventory Capacity 8 | 5 5 8 8 Average Capacity 5 | 5 5 5 5 Most Carried 5 | 3 5 5 5 Average Carried 3 | . 4 4 3 Final Capacity 8 | 5 5 5 8 Final Carried 5 | 1 5 5 4 Class Distribution -------------------- 57% | Mutant 40% | Scavenger-Mutant Dominant Class ---------------- Mutant | -10/Materials Scavenger-Mutant | -9/Materials Mutant | -8/Materials Resources | -11 -10 -9 -8 ----------- Run | Jun Mat Mat Mat Matter Collected 1035 | 260 30 63 682 Remotely . | . . . . Salvage Created 1020 | 50 82 172 716 Parts 67 | 4 7 9 47 Haulers Intercepted . | . . . . Recyclers Shooed . | . . . . Parts Field Recycled . | . . . . Retrieved Matter . | . . . . Parts Self-Destructed . | . . . . Prevented . | . . . . Kills | -11 -10 -9 -8 ------- Run | Jun Mat Mat Mat Combat Hostiles Destroyed 30 | 1 2 3 24 Guns 26 | 1 2 3 20 AOE 3 | . . . 3 Classes Destroyed 10 | 1 3 2 4 Worker 3 | . . . 3 Builder 1 | . . . 1 Tunneler 2 | . 1 . 1 Recycler 1 | . . 1 . Watcher 1 | . 1 . . Swarmer 14 | . 2 2 10 Cutter 3 | . . . 3 Grunt 9 | 1 . . 8 Sentry 2 | . . 1 1 Hunter 2 | . . . 2 Best Kill Streak 4 | 1 2 3 4 Combat Bots Only 4 | 1 2 2 4 Max Kills in Single Turn 2 | 1 2 2 2 Gunslinging . | . . . . Exploded 1 | . . . 1 Melee . | . . . . Uniques/NPCs Destroyed . | . . . . Combat | -11 -10 -9 -8 -------- Run | Jun Mat Mat Mat Damage Taken 2924 | 22 16 43 2843 Core 563 | . . 13 550 Absorbed by Shields . | . . . . Redirected to Shielding 112 | . . . 112 Core Remaining (%) 98 | 100 100 96 . Volleys Fired 94 | 4 5 5 80 Largest 2 | 2 2 2 2 Hottest 128 | 80 80 128 128 Shots Fired 160 | 8 10 10 132 Gun 151 | 8 10 10 123 Cannon . | . . . . Launcher 9 | . . . 9 Special . | . . . . Kinetic 57 | . . . 57 Thermal 72 | . . 6 66 Explosive 3 | . . . 3 Electromagnetic 28 | 8 10 4 6 Robot Hit Streak 18 | 3 2 3 18 Robot Miss Streak 8 | 2 2 2 8 Penetration Max . | . . . . Secondary Targets 3 | . . . 3 Max Gunslinging Chain 1 | . . . 1 Shots Hit Robots 110 | 4 4 8 94 Core Hits 66 | 1 3 6 56 Critical Kills . | . . . . Critical Parts Destroyed . | . . . . Critical Strikes . | . . . . Melee Attacks 3 | . . . 3 Impact . | . . . . Slashing . | . . . . Piercing . | . . . . Sneak Attacks . | . . . . Combat Hostiles . | . . . . Follow-up Attacks . | . . . . Damage Inflicted 2263 | 55 138 163 1907 Guns 1600 | 55 65 121 1359 Cannons . | . . . . Explosions 656 | . 73 42 541 Melee . | . . . . Ramming 7 | . . . 7 Kinetic 582 | . . . 582 Thermal 972 | . 73 122 777 Explosive 348 | . . . 348 Electromagnetic 354 | 55 65 41 193 Impact . | . . . . Slashing . | . . . . Piercing . | . . . . Highest Corruption 9 | . . . 9 Average Corruption 9 | . . . 9 Corruption Purged . | . . . . Corruption Blocked . | . . . . Overload Shots . | . . . . Overflow Damage 30 | . 27 . 3 Projectiles . | . . . . Explosions 30 | . 27 . 3 Melee . | . . . . Knockbacks . | . . . . Impact . | . . . . Kinetic . | . . . . Secondary . | . . . . Self-Inflicted Damage 174 | . . 22 152 Shots 8 | . . 1 7 Rammed 1 | . . . 1 Targets Rammed 5 | . 1 . 4 Kicked 4 | . 1 . 3 Crushed . | . . . . Highest Temperature 484 | 84 . 66 484 Average Temperature 91 | 45 . 37 98 Received Heat Transfer 435 | 12 . . 423 Effects 4 | . . . 4 Shutdowns 3 | . . . 3 Damage (minor) 1 | . . . 1 Siege Activations . | . . . . Robots Corrupted . | . . . . Combat Hostiles . | . . . . Parts Fried 1 | . . . 1 Impact Corruptions . | . . . . Robots Melted 1 | . . . 1 Combat Hostiles 1 | . . . 1 Parts Melted 3 | . . . 3 Heat Transferred 1926 | . 100 213 1613 Parts Sabotaged . | . . . . Parts Stolen . | . . . . Parts Stripped . | . . . . Power Chain Reactions 3 | . 1 1 1 Missiles Intercepted . | . . . . Alert | -11 -10 -9 -8 ------- Run | Jun Mat Mat Mat Peak Influence 527 | 20 89 226 527 Initial 94 | . 13 37 94 Average 223 | 4 38 104 333 Maximum Alert Level 2 | . . 1 2 Low Security (%) 43 | 100 100 96 8 Level 1 44 | . . 3 73 Level 2 11 | . . . 18 Level 3 . | . . . . Level 4 . | . . . . Level 5 . | . . . . High Security . | . . . . Max Security . | . . . . Squads Dispatched 10 | . . 1 9 Investigation . | . . . . Extermination . | . . . . Reinforcement 4 | . . 1 3 Assault . | . . . . Garrison 6 | . . . 6 Intercept . | . . . . Searches Triggered . | . . . . Construction Impeded . | . . . . Haulers Reinforced . | . . . . Active Scanning Responses . | . . . . Cargo Convoy Interrupts . | . . . . Stealth | -11 -10 -9 -8 --------- Run | Jun Mat Mat Mat Distress Signals 2 | . . . 2 Communications Jammed . | . . . . Distress Signals . | . . . . Times Spotted 52 | 1 4 7 40 Peak Tracking Total 10 | 1 3 6 10 Tactical Retreats 7 | . . 2 5 Traps | -11 -10 -9 -8 ------- Run | Jun Mat Mat Mat Traps Triggered . | . . . . Indirectly . | . . . . Trap Hack Attempts . | . . . . Triggered . | . . . . Disarmed . | . . . . Reprogrammed . | . . . . Reused . | . . . . Traps Extracted . | . . . . Installed . | . . . . Triggered . | . . . . Machines | -11 -10 -9 -8 ---------- Run | Jun Mat Mat Mat Machines Disabled 3 | . . . 3 Max in Single Turn 1 | . . . 1 Machines Repaired . | . . . . Machines Sabotaged . | . . . . Overloaded Fab Kills . | . . . . Hacking | -11 -10 -9 -8 --------- Run | Jun Mat Mat Mat Machines Accessed 5 | . 2 2 1 Terminals 3 | . 1 2 . Fabricators . | . . . . Repair Stations . | . . . . Recycling Units 2 | . 1 . 1 Scanalyzers . | . . . . Garrison Access . | . . . . Total Hacks 13 | . 4 5 4 Successful 8 | . 4 2 2 Failed 5 | . . 3 2 Catastrophic . | . . . . Database Lockouts . | . . . . Manual . | . . . . Terminals 7 | . 2 5 . Fabricators . | . . . . Repair Stations . | . . . . Recycling Units 6 | . 2 . 4 Scanalyzers . | . . . . Garrison Access . | . . . . Terminal Hacks 4 | . 2 2 . Record 1 | . . 1 . Repair Station Index 1 | . 1 . . Alert Level 1 | . 1 . . Registered Components 1 | . . 1 . Fabricator Hacks . | . . . . Repair Station Hacks . | . . . . Recycling Unit Hacks 4 | . 2 . 2 Report Inventory 2 | . 1 . 1 Retrieve Matter 1 | . 1 . . Retrieve Components 1 | . . . 1 Scanalyzer . | . . . . Garrison Access Hacks . | . . . . Unauthorized Hacks . | . . . . Terminals . | . . . . Fabricators . | . . . . Repair Stations . | . . . . Recycling Units . | . . . . Scanalyzers . | . . . . Garrison Access . | . . . . Data Cores Recovered . | . . . . Used . | . . . . Hacking Detections 2 | . . 2 . Full Trace Events . | . . . . Feedback Events . | . . . . Feedback Blocked . | . . . . Robot Schematics Acquired . | . . . . Robots Built . | . . . . Authchips . | . . . . Time . | . . . . Total Robot Build Rating . | . . . . Part Schematics Acquired . | . . . . Parts Built . | . . . . Authchips . | . . . . Time . | . . . . Total Part Build Rating . | . . . . Parts Repaired . | . . . . Time . | . . . . Parts Recycled . | . . . . Recycled Matter . | . . . . Retrieved Matter . | . . . . Retrieved Components 3 | . . . 3 Parts Scanalyzed . | . . . . Part Schematics Acquired . | . . . . Parts Damaged . | . . . . Bothacking | -11 -10 -9 -8 ------------ Run | Jun Mat Mat Mat Used RIF Installer . | . . . . Robots Hacked 1 | . . . 1 Non-combat . | . . . . Combat 1 | . . . 1 Robot Hacks Applied 1 | . . . 1 parse_system 1 | . . . 1 Relay Couplers Released . | . . . . Fabnet Peak Effective % . | . . . . Robots Rewired . | . . . . Allies Hacked . | . . . . Hacks Repelled . | . . . . Allies | -11 -10 -9 -8 -------- Run | Jun Mat Mat Mat Total Allies . | . . . . Largest Group . | . . . . Highest-Rated Group . | . . . . Highest-Rated Ally . | . . . . Total Orders . | . . . . Ally Attacks . | . . . . Total Damage . | . . . . Kills . | . . . . Allies Corrupted . | . . . . Allies Melted . | . . . . Intel | -11 -10 -9 -8 ------- Run | Jun Mat Mat Mat Robot Analysis Total . | . . . . Derelict Logs Recovered . | . . . . Drone Launches . | . . . . Drone Recoveries . | . . . . Exploration | -11 -10 -9 -8 ------------- Run | Jun Mat Mat Mat Turns Passed 1559 | 100 302 214 943 Spaces Moved 1471 | 74 287 426 684 Core 37 | 17 1 . 19 Treads . | . . . . Legs 542 | 57 185 . 300 Wheels 43 | . . . 43 Hover . | . . . . Flight 849 | . 101 426 322 Fastest Speed 31 | 50 37 34 31 Average Speed 76 | 103 92 34 91 Slowest Speed 360 | 120 150 117 360 Overloaded Moves . | . . . . Propulsion Burnouts . | . . . . Robots Hopped 10 | . . 10 . Cave-ins Triggered . | . . . . Exploration Rate (%) 24 | 5 33 29 32 Regions Visited 3 Branch Regions . Pre-discovered Areas . | . . . . Known Exits Taken . | . . . . Unknown Exits Taken 3 | 1 1 1 . Scrap Searched . | . . . . Spaces Dug . | . . . . Terrain Destroyed 34 | . 5 6 23 Melee . | . . . . Projectile . | . . . . AOE 34 | . 5 6 23 Terrain Rammed . | . . . . Walls Destroyed . | . . . . Machines Disabled . | . . . . Actions | -11 -10 -9 -8 --------- Run | Jun Mat Mat Mat Total 1737 | 87 313 473 864 Wait 37 | . 2 21 14 Move 1448 | 73 286 405 684 Hop 10 | . . 10 . Pick Up 27 | 3 8 6 10 Fast Attach 45 | 5 4 4 32 Attach 13 | 1 . 4 8 Detach 6 | . 1 3 2 Swap 18 | . . 7 11 Drop 31 | 1 6 8 16 Fire 94 | 4 5 5 80 Melee 3 | . . . 3 Ram 1 | . . . 1 Kick 4 | . 1 . 3 Crush . | . . . . Escape Stasis . | . . . . Rewire . | . . . . Trap . | . . . . Miscellaneous . | . . . . Route ------- -11/Junkyard -10/Materials (discovered 3 exits: *Mat / [*Min x2]) -9/Materials -8/Materials History --------- Turn | Location | Event 2 | -11/Junkyard | Met Revision 17 63 | -11/Junkyard | Discovered new exit (range 8) 101 | -11/Junkyard | Entered Materials 204 | -10/Materials | Discovered new exit (range 15) 233 | -10/Materials | Discovered new exit (range 11) 276 | -10/Materials | Discovered new exit (range 12) 304 | -10/Materials | Build established: Mutant 403 | -10/Materials | Entered another Materials area 403 | -9/Materials | Evolved 2 slots: Propulsion x1, Utility x1 600 | -9/Materials | Discovered new exit (range 16) 617 | -9/Materials | Entered another Materials area 617 | -8/Materials | Evolved 2 slots: Power x1, Propulsion x1 662 | -8/Materials | Build established: Scavenger-Mutant 676 | -8/Materials | Garrison activated, responded to threat 836 | -8/Materials | Lost 14 parts (3p5n2u4w) 933 | -8/Materials | Lost 3 parts (1p2u) 1004 | -8/Materials | Garrison activated, responded to threat 1008 | -8/Materials | Core integrity fell below 50% 1114 | -8/Materials | Lost 7 parts (2p1n3u1w) 1189 | -8/Materials | Core integrity fell below 20% 1220 | -8/Materials | Lost 4 parts (4n) 1560 | -8/Materials | Destroyed by H-61 Shepherd with Heavy Assault Cannon Last Messages --------------- 01536_ Destroyed Reaction Control System. 01536_ Imp. Power Shielding blocked chain reaction in Lgt. Ion Engine. 01537_ Titanium Leg severed. 01538_ C-17 Slicer destroyed. 01540_ Aluminum Leg severed. 01544_ Atomic Centrifuge disabled. 01547_ C-17 Slicer destroyed. 01549_ Imp. Power Shielding destroyed. 01549_ Lgt. Ion Engine destroyed. 01549_ Reaction Control System fried. 01549_ C-17 Slicer destroyed. 01549_ Chain reaction triggered in Corrupted Lgt. Nuclear Core. 01553_ Acquired Corrupted Surge Thruster. 01553_ Integrated Corrupted Surge Thruster (+9). The Surge Thruster is "overloadable", activating it again increases its output for additional resource costs, and may damage the unit. 01554_ R-06 Scavenger collects Corrupted Surge Thruster. 01557_ Y-45 Defender destroyed. 01558_ K-01 Serf collects debris. 01558_ R-06 Scavenger collects Corrupted Aluminum Leg. Map ----- +----------------------------------------------------+ | # """ """ #???????????????????? | | # """ """ #???????????????????? | | + """ """ #???????????????????? | | ##### # #???????????????????? | | #######+##### # #???????????????????? | | #??# # # #???????????????????? | | #??# % # #####/#####???????????????????? | | #??# """[* #! ##### ###############?????????? | | #??#""""" #% ^ ???????? | | #??#""""" #= ^ ???????? | | ####??#""""" # ^ ???????? | | #?????# """ ## ############ #######??????????? | | #?????# ## #????????????#????????????????? | | #?????# ## ##??#######???????????????????? | | #?????########### ## ? #???????????????????? | | #??############## ## """ #???????????????????? | | #??# # ## """ #???????????????????? | | ##?# """ "" # ## """ #???????????????????? | | #?# """ S"" # ## #???????????????????? | | #?# """ "" # ## "" ] #???????????????????? | | #?# ! + ## ## ##???????????????? | | ##?#####+######## ## #???????????????? | | #???# = [ =#?## ## ] #???????????????? | | ##### * #?# ### ### ####?????????????? | | + ! #?# ! % / #?????????????? | | # ! #?# @ *[ ???????? | | # #?# ##;r%== !%= ???????? | | ## + #### =## # ###### ## %= Hk ???????? | | # ## "Y"! #?# # =# ##?????#???##### ????????? | | # ## ! "" ##?# !####+######???????????????????? | | %# ## #??# ## #???????????????????? | | # ######+####### ## #???????????????????? | | # ]# #???????????????????? | | "% # ! #???????????????????? | | #% " + !=== #???????????????????? | | ## T """ # ! = #???????????????????? | | ## ### " """ # = [ #???????????????????? | | ## #?# """ # #???????????????????? | | ## #?# # #???????????????????? | | ### #?# ##########???????????????????? | | ??# #?# #???????????###????????????? | | ??# # ############ #????????????? | | ??# # ????????????? | | ???+###+########################## #????????????? | | ??????????????????????????????????##?????????????? | | ?????????????????????????????????????????????????? | | ?????????????????????????????????????????????????? | | ?????????????????????????????????????????????????? | | ?????????????????????????????????????????????????? | | ?????????????????????????????????????????????????? | +----------------------------------------------------+ Best States ------------- Heat Dissipation 45 Energy Generation 23 Energy Capacity 290 Matter Stores 429 Matter Capacity 500 Sight Range 18 Robot Scan Range 15 Terrain Scan Density 10 Armor Coverage 150 Resistance: TH 10 Resistance: EM 15 Power Shielding 66 Evasion (%) 63 Targeting Accuracy 5 Item Schematics ----------------- None Robot Schematics ------------------ None Fabricated ------------ Nothing Alien Tech Used ----------------- None Achievements -------------- None Challenges ------------ None Game ------ Seed CommMakeshiftMount Manual? 0 Play Time 00:39:49 Cumulative 6.2 hours Start 2023.07.22 @ 22:27:02 End 2023.07.22 @ 23:07:22 Sessions 1 Manual Loads 0 Difficulty Rogue Special Mode None Game No. 11 Rogue 11 Adventurer 0 Explorer 0 Win Type - Total 0 Types 0/0/0/0/0/0/0/0/0 Lore% 1 Gallery% 15 Achievement% 11 Wizard Run 0 Options --------- ASCII 0 Keyboard 1 Movement Vi Keybinds 0 Fullscreen 1 Font 24/Smallcaps Map View 76x50 Tactical HUD 1 Map Filters NONE Filters NONE Steam 1 RUN: d6399a7a-57f5-42fe-9722-d9dd648bf211